bitfinex-derivatives/quotes_ETHF0:USTF0_20250903
["timestamp","ask_amount","ask_price","bid_price","bid_amount"]
[1756867899966,3.4438,4346.3,4346.2,0.719]
[1756867900567,3.4438,4346.3,4346.2,0.3169]
[1756867901562,3.2078,4346.8,4346.3,0.2949]
[1756867901768,3.2078,4346.8,4346.7,0.7109]
[1756867901968,3.4438,4346.8,4346.7,0.7109]
[1756867902565,4.01174894,4346.8,4346.7,0.5027]
[1756867902963,3.4438,4346.8,4346.7,0.5027]
[1756867903663,3.4438,4346.8,4346.7,0.2949]
[1756867904265,4.01180715,4346.8,4346.7,0.2949]
[1756867904468,4.01180715,4346.8,4346.7,0.5027]
[1756867907776,3.4438,4346.8,4346.7,0.5027]
[1756867908272,4.01186912,4346.8,4346.7,0.5027]
[1756867908880,4.01186912,4346.8,4346.7,0.2949]
[1756867909881,4.01186912,4346.8,4346.7,0.5027]
[1756867910380,3.4438,4346.8,4346.7,0.5027]
[1756867910676,3.4438,4346.8,4346.7,0.2949]
[1756867910877,4.01188713,4346.8,4346.7,0.2949]
[1756867911978,8.24194714,4346.8,4345.1,0.2949]
[1756867912179,0.1863,4344.9,4344.8,0.7109]
[1756867912378,3.4438,4345.2,4345.1,0.7109]
[1756867912782,3.4438,4345.2,4345.1,4.7109]
[1756867914376,0.1165,4346.5,4345.5,0.1174]
[1756867914377,3.2078,4345.7,4345.5,0.1174]
[1756867914585,3.3941,4345.7,4345.6,0.7109]
[1756867914882,3.6301,4345.7,4345.6,0.7109]
[1756867917380,3.3941,4345.7,4345.6,0.7109]
[1756867917686,0.236,4345.7,4345.6,0.7109]
[1756867918078,0.4223,4345.7,4345.6,0.7109]
[1756867918786,0.236,4345.7,4345.6,0.7109]
[1756867922086,3.2078,4346.2,4346.1,0.2949]
[1756867922386,0.236,4346.2,4346.1,0.7109]
[1756867922583,1.32851003,4346.5,4346.2,0.2949]
[1756867922781,0.6086,4346.5,4346.4,0.7109]
[1756867924280,3.2078,4346.7,4346.6,0.7109]
[1756867924486,0.115,4347.0,4346.7,0.2949]
[1756867924789,0.115,4347.0,4346.9,0.7109]
[1756867925091,0.115,4347.0,4346.9,41.5109]
[1756867926382,0.4857,4347.0,4346.9,0.7109]
[1756867926576,0.601,4347.0,4346.9,0.2949]
[1756867926782,3.8088,4347.0,4346.9,0.2949]
[1756867927589,4.0448,4347.0,4346.9,0.2949]
[1756867927784,3.8088,4347.0,4346.9,0.2949]
[1756867927978,3.9295,4347.0,4346.9,0.5027]
[1756867928185,3.9295,4347.0,4346.9,0.7109]
[1756867931291,0.115,4347.0,4346.9,0.7109]
[1756867931494,3.5792,4348.1,4348.0,0.3159]
[1756867931695,5.14371003,4348.1,4348.0,0.626]
[1756867932190,4.90771003,4348.1,4348.0,0.626]
[1756867932392,5.14371003,4348.1,4348.0,0.8184]
[1756867933289,4.90771003,4348.1,4348.0,0.8184]
[1756867933484,5.14371003,4348.1,4348.0,0.8184]
[1756867934188,5.14371003,4348.1,4348.0,0.626]
[1756867935380,0.1161,4348.0,4347.5,0.4273]
[1756867935694,1.81601003,4347.6,4346.8,0.236]
[1756867935887,2.05201003,4347.6,4346.8,0.236]
[1756867936195,2.05201003,4347.6,4347.1,40.8]
[1756867936493,1.93591003,4347.6,4347.1,40.8]
[1756867936701,1.93591003,4347.6,4346.8,0.236]
[1756867936991,1.32851003,4347.2,4347.1,0.3101]
[1756867937295,1.32851003,4347.2,4347.1,0.5088]
[1756867937296,1.69991003,4347.2,4347.1,0.5088]
[1756867939098,1.69991003,4347.2,4347.1,0.7012]
[1756867941092,0.1161,4348.1,4347.4,0.3911]
[1756867941296,0.4217,4348.1,4348.0,0.626]
[1756867941499,1.75021003,4348.1,4348.0,0.8184]
[1756867941798,1.93591003,4348.1,4348.0,0.8184]
[1756867941994,2.05201003,4348.1,4348.0,0.4273]
[1756867942390,1.69991003,4348.1,4348.0,0.626]
[1756867942699,1.93591003,4348.1,4348.0,0.626]
[1756867942895,1.69991003,4348.1,4348.0,0.8184]
[1756867943095,1.93591003,4348.1,4348.0,0.8184]
[1756867944196,0.3714,4348.1,4348.0,0.8184]
[1756867944495,3.2078,4348.2,4348.0,0.5083]
[1756867944696,3.6295,4348.2,4348.1,0.3101]
[1756867944902,3.5792,4348.2,4348.1,0.7012]
[1756867945105,3.6953,4348.2,4348.1,0.3101]
[1756867946105,3.8152,4348.2,4348.1,0.5088]
[1756867946495,3.9313,4348.2,4348.1,0.5088]
[1756867947004,3.9313,4348.2,4347.6,0.3101]
[1756867947005,3.8152,4348.2,4347.6,0.3101]
[1756867947204,0.3714,4347.6,4347.5,0.5083]
[1756867947596,0.1857,4347.6,4347.5,0.5083]
[1756867947796,0.1857,4347.6,4347.5,0.8184]
[1756867948200,0.1857,4348.1,4348.0,0.5083]
[1756867948397,0.6074,4348.1,4348.0,0.8184]
[1756867948599,0.7235,4348.1,4348.0,0.4273]
[1756867948799,0.3714,4347.6,4347.5,0.1172]
[1756867949001,0.3714,4347.6,4347.5,0.4273]
[1756867949198,0.3714,4347.6,4347.5,0.626]
[1756867949499,0.1857,4347.6,4347.5,0.8184]
[1756867950005,0.3714,4347.6,4347.5,0.8184]
[1756867952804,3.9313,4347.6,4347.0,40.9172]
[1756867953000,1.81601003,4347.2,4347.1,0.3101]
[1756867954606,0.3714,4346.6,4346.5,0.4275]
[1756867954803,0.6074,4346.6,4346.5,0.6262]
[1756867955105,0.6074,4346.6,4346.5,0.8186]
[1756867955611,3.5792,4347.1,4347.0,0.5083]
[1756867955812,3.8152,4347.1,4347.0,0.8184]
[1756867956711,3.4438,4347.1,4347.0,0.8184]
[1756867958000,0.236,4347.1,4347.0,0.8184]
[1756867959015,0.1857,4347.1,4347.0,0.8184]
[1756867959212,1.08705341,4347.3,4347.0,0.5083]
[1756867959414,1.08705341,4347.3,4347.2,0.7012]
[1756867959918,1.27275341,4347.3,4347.2,0.7012]
[1756867960717,1.45845341,4347.3,4347.2,0.7012]
[1756867961222,0.4875,4347.1,4347.0,0.4273]
[1756867961721,3.2078,4347.6,4347.5,0.7967]
[1756867961911,4.53085341,4347.6,4347.5,0.7967]
[1756867962112,4.71675341,4347.6,4347.5,0.7967]
[1756867962514,4.90265341,4347.6,4347.5,0.7967]
[1756867963314,4.66665341,4347.6,4347.5,0.7967]
[1756867963521,4.90265341,4347.6,4347.5,0.7967]
[1756867963719,4.90265341,4347.6,4347.5,0.6036]
[1756867965424,5.01885341,4347.6,4347.5,0.6036]
[1756867966029,5.01885341,4347.6,4347.5,0.4086]
[1756867967117,5.01885341,4347.6,4347.5,0.2898]
[1756867967330,5.01885341,4347.6,4347.1,0.2898]
[1756867967331,4.90265341,4347.6,4347.1,0.2898]
[1756867967631,1.57505341,4347.2,4347.1,0.2898]
[1756867967829,1.81105341,4347.2,4347.1,0.2898]
[1756867968427,0.1859,4347.2,4347.1,0.6779]
[1756867968625,1.32305341,4347.2,4347.1,0.6779]
[1756867970228,1.50895341,4347.2,4347.1,0.6779]
[1756867971124,1.08705341,4347.2,4347.1,0.6779]
[1756867971929,3.2078,4347.6,4347.1,0.6779]
[1756867972132,3.4438,4347.6,4347.5,0.7967]
[1756867972334,0.236,4347.6,4347.5,0.7967]
[1756867972833,1.08705341,4348.0,4347.5,0.5069]
[1756867973035,3.3937,4348.1,4348.0,0.7967]
[1756867973331,3.6297,4348.1,4348.0,0.7967]
[1756867974739,0.3718,4347.3,4347.2,0.2898]
[1756867975035,1.45885341,4347.3,4347.2,0.4848]
[1756867975629,1.57505341,4347.3,4347.2,0.2898]
[1756867980630,0.1162,4347.2,4346.7,3.2078]
[1756867980830,1.08705341,4347.2,4347.0,0.5053]
[1756867981034,3.3937,4347.6,4347.5,0.5069]
[1756867981234,3.8156,4347.6,4347.5,0.7967]
[1756867981639,3.9318,4347.6,4347.5,0.4086]
[1756867981836,3.5796,4347.6,4347.5,0.6036]
[1756867982138,3.8156,4347.6,4347.5,0.6036]
[1756867983338,3.9318,4347.6,4347.5,0.4086]
[1756867984136,3.9318,4347.6,4347.5,0.2898]
[1756867987845,3.8156,4347.6,4347.0,0.1172]
[1756867988038,0.3736,4347.2,4347.1,0.195]
[1756867988237,0.3736,4347.2,4347.1,0.4848]
[1756867990042,0.236,4347.3,4347.2,0.2898]
[1756867990344,0.236,4347.3,4347.2,0.6779]
[1756867990345,0.6096,4347.3,4347.2,0.6779]
[1756867995639,0.7266,4347.3,4347.2,0.2898]
[1756867996040,0.7266,4347.3,4347.2,0.4956]
[1756867996240,3.2078,4347.6,4347.2,0.418]
[1756867996549,3.5824,4348.2,4348.1,0.7105]
[1756867996848,5.47341184,4348.2,4348.1,0.7105]
[1756867997749,5.59041184,4348.2,4348.1,0.4983]
[1756867997945,5.59041184,4348.2,4348.1,0.2925]
[1756867998245,5.02245341,4348.2,4348.1,0.2925]
[1756867998445,3.9354,4348.2,4348.1,0.2925]
[1756867999542,4.71815341,4348.2,4348.1,0.7105]
[1756868000240,5.02245341,4348.2,4348.1,0.4983]
[1756868000540,4.78645341,4348.2,4348.1,0.4983]
[1756868000740,5.02245341,4348.2,4348.1,0.4983]
[1756868000943,5.02245341,4348.2,4348.1,0.2925]
[1756868002049,4.78645341,4348.2,4348.1,0.2925]
[1756868002252,5.02245341,4348.2,4348.1,0.2925]
[1756868004747,0.117,4348.1,4347.6,0.2925]
[1756868004952,1.46165341,4347.7,4347.6,0.4983]
[1756868005249,1.69765341,4347.7,4347.6,0.4983]
[1756868005549,1.69765341,4347.7,4347.6,0.7105]
[1756868006544,0.1873,4347.2,4347.1,0.4983]
[1756868006743,0.1873,4347.2,4347.1,0.7105]
[1756868008845,0.3746,4347.2,4347.1,0.7105]
[1756868010451,0.1873,4347.2,4347.1,0.7105]
[1756868010651,0.236,4347.4,4347.1,0.418]
[1756868010851,0.4233,4347.4,4347.3,0.418]
[1756868011256,0.4233,4347.4,4347.3,0.7105]
[1756868011459,0.1873,4347.4,4347.3,0.7105]
[1756868011654,0.4233,4347.4,4347.3,0.7105]
[1756868013347,1.27435341,4347.6,4347.5,0.4179]
[1756868013557,1.51035341,4347.6,4347.5,0.8359]
[1756868014554,1.69765341,4347.6,4347.5,0.8359]
[1756868018359,1.81465341,4347.6,4347.5,0.6237]
[1756868019462,2.05534028,4347.6,4347.5,0.6237]
[1756868019868,3.2078,4347.7,4347.6,0.2925]
[1756868020164,3.6311,4347.7,4347.6,0.7105]
[1756868020857,3.8184,4347.7,4347.6,0.7105]
[1756868021865,3.9345,4347.7,4347.6,0.4983]
[1756868022066,0.1161,4347.6,4347.1,0.3014]
[1756868022263,1.81544028,4347.2,4347.1,0.3014]
[1756868022461,1.81544028,4347.2,4346.7,5.335]
[1756868022462,0.1161,4347.1,4346.7,5.335]
[1756868022764,0.3716,4346.9,4346.8,0.3014]
[1756868023468,0.3716,4346.9,4346.8,0.4974]
[1756868024167,0.4877,4346.9,4346.8,0.3014]
[1756868024562,0.4877,4346.9,4346.5,0.1174]
[1756868024875,0.4877,4346.6,4346.5,0.1174]
[1756868025170,0.7237,4346.6,4346.5,0.1174]
[1756868025375,0.7237,4346.6,4346.5,0.4188]
[1756868026069,3.2078,4346.7,4346.6,0.3014]
[1756868026264,3.4438,4346.7,4346.6,0.6966]
[1756868027670,3.8154,4346.7,4346.6,0.6966]
[1756868028372,3.9315,4346.7,4346.6,0.4974]
[1756868028571,3.9315,4346.7,4346.6,0.3014]
[1756868029666,3.2078,4346.7,4346.6,0.6966]
[1756868029967,3.4438,4346.7,4346.6,0.6966]
[1756868031172,3.8154,4346.7,4346.6,0.6966]
[1756868031567,3.2078,4346.7,4346.6,0.6966]
[1756868031761,3.4438,4346.7,4346.6,0.6966]
[1756868032671,0.1858,4346.3,4346.2,0.196]
[1756868032870,1.93534028,4346.3,4346.2,0.4974]
[1756868033060,2.05144028,4346.3,4346.2,0.3014]
[1756868033476,1.93534028,4346.3,4346.2,0.4974]
[1756868033674,2.05144028,4346.3,4346.2,0.4974]
[1756868034274,1.93534028,4346.3,4346.0,0.4268]
[1756868034573,0.4877,4346.1,4346.0,0.4268]
[1756868034767,0.7237,4346.1,4346.0,0.4268]
[1756868035162,0.6076,4346.1,4346.0,0.6228]
[1756868036066,0.6076,4346.1,4346.0,0.822]
[1756868037374,0.6076,4346.1,4346.0,0.6228]
[1756868037783,0.7237,4346.1,4346.0,0.4268]
[1756868038475,0.7237,4346.1,4346.0,0.6228]
[1756868039177,0.7237,4346.1,4346.0,0.3014]
[1756868039479,0.6076,4346.1,4346.0,0.6246]
[1756868039676,0.6076,4346.1,4346.0,0.8238]
[1756868040375,3.2078,4346.2,4346.0,0.8238]
[1756868040677,3.3936,4346.2,4346.1,0.6966]
[1756868040874,3.8154,4346.2,4346.1,0.6966]
[1756868041877,3.2078,4346.2,4346.1,0.6966]
[1756868042075,3.8154,4346.2,4346.1,0.6966]
[1756868042575,3.2078,4346.2,4346.1,0.92669]
[1756868042878,0.1161,4348.0,4347.2,0.6966]
[1756868042879,3.6126,4347.3,4347.2,0.6966]
[1756868043083,5.48784028,4347.3,4347.2,0.6966]
[1756868043579,3.2078,4347.3,4347.2,0.6966]
[1756868043780,0.236,4347.7,4347.2,4.6966]
[1756868043975,1.32774028,4347.3,4347.2,0.196]
[1756868044175,2.04404028,4347.3,4347.2,0.4974]
[1756868044378,2.28004028,4347.3,4347.2,0.4974]
[1756868044577,2.28004028,4347.3,4347.2,0.6966]
[1756868044780,1.96854028,4347.3,4347.2,0.6966]
[1756868045081,2.28004028,4347.3,4347.2,0.6966]
[1756868046082,2.04404028,4347.3,4347.2,0.6966]
[1756868046379,2.28004028,4347.3,4347.2,0.6966]
[1756868047481,0.1996,4346.8,4346.7,0.4974]
[1756868047682,0.1996,4346.8,4346.7,0.6966]
[1756868047882,1.32774028,4347.3,4347.0,0.5224]
[1756868048180,1.76334028,4347.3,4347.2,0.6966]
[1756868048585,1.63924028,4348.0,4347.5,0.5224]
[1756868048881,0.4048,4347.1,4347.0,0.8238]
[1756868049377,1.32774028,4347.6,4347.0,0.5224]
[1756868049571,0.4356,4347.5,4347.4,0.6966]
[1756868051174,0.9523,4347.5,4347.4,0.4974]
[1756868051378,1.0595,4347.5,4347.1,0.313]
[1756868051585,2.04834028,4347.2,4347.1,0.313]
[1756868051881,2.28434028,4347.2,4347.1,0.313]
[1756868052181,2.28434028,4347.2,4347.1,0.5173]
[1756868052881,2.28434028,4347.2,4346.6,46.135]
[1756868053082,0.2998,4347.1,4346.7,0.313]
[1756868053280,0.2086,4346.8,4346.7,0.7138]
[1756868053578,2.28434028,4346.8,4345.9,3.2078]
[1756868053889,1.74854028,4346.3,4346.1,0.313]
[1756868054177,1.98454028,4346.3,4345.6,40.8]
[1756868054374,0.2086,4345.8,4345.7,0.7138]
[1756868056587,0.7206,4345.8,4345.7,0.7138]
[1756868058085,0.4208,4345.8,4345.7,0.7138]
[1756868061191,0.7206,4345.8,4345.7,0.313]
[1756868061489,0.7206,4345.8,4345.7,0.5173]
[1756868064092,0.7206,4345.8,4345.7,0.7138]
[1756868065194,0.7206,4345.8,4345.7,0.5173]
[1756868065892,0.7206,4345.8,4345.7,0.313]
[1756868066189,0.7206,4345.8,4345.7,0.7138]
[1756868066392,0.2086,4345.8,4345.7,0.7138]
[1756868067387,0.7206,4345.8,4345.7,0.7138]
[1756868067588,0.7206,4345.8,4345.6,0.313]
[1756868067794,0.7206,4345.7,4345.6,0.5173]
[1756868067989,0.7206,4345.7,4345.6,0.7138]
[1756868068291,0.7206,4345.2,4345.1,0.7138]
[1756868068490,5.25614028,4345.2,4344.6,0.313]
[1756868068695,5.25614028,4345.2,4345.1,0.2043]
[1756868068992,5.25614028,4345.2,4345.1,0.7138]
[1756868069185,5.25614028,4345.2,4345.1,0.5173]
[1756868069389,0.2998,4345.1,4344.5,0.313]
[1756868069690,0.4208,4344.2,4344.1,0.7138]
[1756868069995,0.7206,4344.2,4344.1,0.7138]
[1756868070188,2.04834028,4344.2,4343.5,0.1257]
[1756868070394,1.74854028,4343.8,4343.7,0.7138]
[1756868070597,2.04834028,4343.8,4343.7,0.7138]
[1756868070988,2.04834028,4343.8,4343.7,0.5173]
[1756868071188,2.04834028,4343.8,4343.5,0.1257]
[1756868071384,0.4208,4343.6,4343.5,0.5173]
[1756868071588,0.7206,4343.6,4343.5,0.5173]
[1756868072296,0.4208,4343.6,4343.5,0.8395]
[1756868074791,0.2122,4343.2,4343.1,0.5095]
[1756868074992,0.4208,4343.2,4343.1,0.7138]
[1756868075394,0.7206,4343.2,4343.1,0.7138]
[1756868075594,0.4208,4343.2,4343.1,0.7138]
[1756868076501,0.7206,4343.2,4343.1,0.7138]
[1756868077694,0.4208,4343.2,4343.1,0.7138]
[1756868078400,0.7206,4343.2,4343.1,0.7138]
[1756868079301,0.4208,4343.2,4343.1,0.7138]
[1756868079705,0.2086,4343.2,4343.1,0.7138]
[1756868082801,0.7232,4343.2,4343.1,0.313]
[1756868083006,0.7232,4343.2,4343.1,0.5256]
[1756868083608,0.7232,4343.2,4343.1,0.7256]
[1756868084311,0.2086,4343.2,4343.1,0.7256]
[1756868084609,0.236,4343.3,4343.2,0.7241]
[1756868086212,1.08896091,4343.6,4343.2,0.7241]
[1756868086409,1.28566091,4343.6,4343.5,0.1191]
[1756868086613,1.28566091,4343.6,4343.5,0.8432]
[1756868086814,1.52166091,4343.6,4343.5,0.8432]
[1756868087114,1.72266091,4343.6,4343.5,0.8432]
[1756868087410,2.03626091,4343.6,4343.5,0.8432]
[1756868088711,2.03626091,4343.6,4343.5,0.7241]
[1756868090109,1.80026091,4343.6,4343.5,0.7241]
[1756868090307,2.03626091,4343.6,4343.5,0.7241]
[1756868090914,1.52166091,4343.6,4343.5,0.8432]
[1756868091108,2.03626091,4343.6,4343.5,0.8432]
[1756868094213,1.80026091,4343.6,4343.5,0.8432]
[1756868094413,2.03626091,4343.6,4343.5,0.7241]
[1756868095630,0.7113,4343.1,4343.0,0.6498]
[1756868096233,0.7113,4343.1,4343.0,0.8498]
[1756868097825,0.7113,4343.1,4343.0,0.7241]
[1756868099336,0.7113,4343.1,4343.0,0.8432]
[1756868099726,0.3977,4343.8,4343.7,0.4126]
[1756868099926,2.30038331,4343.8,4343.7,0.7241]
[1756868100331,2.61398331,4343.8,4343.7,0.7241]
[1756868100722,2.37798331,4343.8,4343.7,0.7241]
[1756868100927,2.61398331,4343.8,4343.7,0.7241]
[1756868101331,2.30038331,4343.8,4343.2,0.3115]
[1756868101530,1.48666091,4343.3,4343.2,0.5241]
[1756868101730,1.48666091,4343.3,4342.1,0.4145]
[1756868101731,0.7113,4343.0,4342.9,0.3115]
[1756868101928,2.37798331,4343.0,4342.9,0.3115]
[1756868103234,2.61398331,4343.0,4342.5,0.1257]
[1756868103435,1.2890224,4342.9,4342.5,0.1257]
[1756868103636,1.2890224,4342.9,4342.8,0.48650029]
[1756868103835,1.2890224,4342.9,4342.8,0.17500029]
[1756868104434,1.2890224,4342.9,4342.5,0.3115]
[1756868104435,0.3136,4342.8,4342.1,0.3115]
[1756868104635,1.80026091,4342.2,4342.1,0.3115]
[1756868104941,2.37798331,4342.2,4342.1,0.5241]
[1756868105640,0.3136,4342.1,4341.7,0.3115]
[1756868105941,1.80026091,4341.8,4341.7,0.7241]
[1756868106235,1.80026091,4341.8,4341.6,42.78081375]
[1756868106236,3.4438,4342.5,4342.4,0.7241]
[1756868106541,4.2176429,4342.5,4342.4,0.5241]
[1756868106729,4.7322429,4342.5,4342.4,0.5241]
[1756868107341,4.1551,4342.5,4342.4,0.5241]
[1756868107544,4.83902059,4342.5,4342.0,0.1191]
[1756868107739,1.80026091,4342.2,4342.1,0.7241]
[1756868107941,2.03626091,4342.2,4342.1,0.7241]
[1756868108343,2.03626091,4342.2,4341.9,3.2078]
[1756868108541,2.03626091,4342.2,4341.6,1.98081375]
[1756868108542,1.72266091,4342.2,4341.6,1.98081375]
[1756868108737,0.1967,4341.8,4341.7,0.7241]
[1756868111749,0.1967,4341.8,4341.7,41.5241]
[1756868112359,0.1967,4341.8,4341.7,0.7241]
[1756868112643,0.4022,4341.8,4341.7,0.7241]
[1756868113639,0.6382,4341.8,4341.7,0.7241]
[1756868113839,0.9492,4341.8,4341.7,0.7241]
[1756868114346,0.9492,4341.8,4341.7,0.5241]
[1756868114549,0.9492,4341.8,4341.7,0.7172]
[1756868116255,0.6382,4341.8,4341.7,0.7172]
[1756868116755,0.9492,4341.8,4341.7,0.5241]
[1756868117054,0.7093,4341.7,4341.6,1.70111375]
[1756868117553,0.7093,4341.7,4341.6,1.50491375]
[1756868118456,0.7093,4341.7,4341.6,1.70111375]
[1756868118651,0.9453,4341.7,4341.6,1.70111375]
[1756868120155,0.7093,4341.7,4341.6,1.70111375]
[1756868120451,0.9453,4341.7,4341.6,1.50491375]
[1756868122456,0.9453,4341.7,4340.8,40.8]
[1756868122457,0.7093,4340.9,4340.8,40.8]
[1756868122655,0.7093,4340.9,4340.8,0.7015]
[1756868122854,0.5038,4340.9,4340.8,0.7015]
[1756868123357,0.311,4340.9,4340.8,0.3893]
[1756868123567,0.311,4340.9,4340.8,0.7015]
[1756868125262,0.5038,4340.9,4340.8,0.7015]
[1756868128468,0.311,4340.8,4340.2,0.3122]
[1756868128757,1.20476091,4341.0,4340.4,0.3893]
[1756868128758,1.91406091,4340.5,4340.4,0.3893]
[1756868128959,1.91406091,4340.5,4340.4,0.7015]
[1756868129957,1.91406091,4340.5,4340.4,0.3893]
[1756868132257,1.91406091,4340.5,4340.4,0.1962]
[1756868133263,0.311,4340.4,4340.1,40.8]
[1756868133459,1.79826091,4340.2,4340.1,40.8]
[1756868134366,1.59276091,4340.2,4340.1,41.1122]
[1756868134969,1.70856091,4340.5,4340.4,0.7015]
[1756868136160,1.91406091,4340.5,4340.4,0.3893]
[1756868137268,3.2078,4340.8,4340.4,0.3893]
[1756868137560,3.7116,4340.8,4340.7,0.7015]
[1756868137861,3.9171,4340.8,4340.7,0.3893]
[1756868140668,0.7093,4340.8,4340.7,0.3893]
[1756868141668,0.7093,4340.8,4340.7,0.1962]
[1756868144268,0.7093,4340.8,4340.7,0.7143]
[1756868144669,0.7093,4340.8,4340.7,0.4045]
[1756868145772,0.7093,4340.8,4340.3,3.2078]
[1756868145974,0.3064,4340.4,4340.3,3.2078]
[1756868146465,0.516,4340.4,4340.3,3.2078]
[1756868147573,0.516,4340.4,4340.3,8.5428]
[1756868147868,0.3064,4340.4,4340.3,8.5428]
[1756868150868,0.3064,4341.3,4340.3,12.7732]
[1756868151066,0.3064,4341.3,4341.2,3.2078]
[1756868151265,0.516,4341.3,4341.2,3.4428]
[1756868151467,0.7216,4341.3,4341.2,3.4428]
[1756868151772,0.7216,4341.3,4341.2,44.2428]
[1756868151975,0.7216,4341.3,4341.2,44.0078]
[1756868152173,0.4152,4340.8,4340.7,5.335]
[1756868152474,2.05327429,4340.8,4340.7,5.335]
[1756868156374,2.05327429,4340.8,4340.3,41.035]
[1756868156576,0.3064,4340.4,4340.3,41.035]
[1756868161176,0.3064,4340.4,4340.3,40.8]
[1756868161482,0.0064,4340.4,4340.3,41.035]
[1756868162480,0.0064,4340.4,4340.3,46.37]
[1756868163786,0.7216,4340.2,4340.1,3.2078]
[1756868164082,0.7216,4340.2,4340.0,0.235]
[1756868164278,1.45427429,4340.5,4339.8,5.335]
[1756868164279,1.74687429,4340.1,4339.9,40.8]
[1756868164483,0.429,4340.0,4339.9,40.8]
[1756868164677,0.4152,4339.8,4339.7,0.235]
[1756868164877,0.7216,4339.8,4339.7,0.235]
[1756868165279,0.7216,4339.8,4339.7,41.035]
[1756868165681,0.8442,4339.5,4339.4,5.57]
[1756868166181,0.1226,4340.5,4339.4,50.36543999]
[1756868166182,0.3064,4340.4,4339.4,50.36543999]
[1756868166482,0.3064,4339.9,4339.8,3.2078]
[1756868166682,0.3064,4339.9,4339.8,3.4428]
[1756868169387,0.516,4339.9,4339.8,3.4428]
[1756868171686,0.7216,4339.9,4339.8,3.2078]
[1756868176091,2.05327429,4339.9,4339.8,3.2078]
[1756868176288,0.7075,4339.4,4339.3,3.2078]
[1756868176790,0.7075,4339.4,4339.1,0.235]
[1756868176791,0.4132,4339.4,4339.1,41.035]
[1756868176982,0.4979,4339.2,4339.1,41.035]
[1756868177186,0.116,4339.0,4338.8,3.2078]
[1756868177383,0.116,4339.0,4338.8,3.4428]
[1756868177589,0.3196,4339.5,4338.8,3.4428]
[1756868177889,0.116,4339.5,4338.9,40.8]
[1756868178087,0.2943,4339.4,4339.0,0.235]
[1756868178488,0.2943,4339.5,4339.0,0.235]
[1756868178689,0.1226,4340.0,4339.4,3.2078]
[1756868178888,0.1226,4340.0,4339.5,0.235]
[1756868179386,0.2943,4339.9,4339.5,0.235]
[1756868180389,0.3262,4340.0,4339.5,0.235]
[1756868180691,0.2943,4339.9,4339.5,0.235]
[1756868181194,0.4979,4339.9,4339.5,0.235]
[1756868181494,0.2943,4339.8,4339.5,0.235]
[1756868182188,0.1226,4340.5,4339.7,1.33167429]
[1756868182392,0.2943,4340.4,4340.2,3.2078]
[1756868182891,0.2943,4340.4,4340.3,44.0078]
[1756868184189,0.2943,4340.7,4340.3,44.0078]
[1756868184386,0.2943,4340.9,4340.3,44.0078]
[1756868184994,0.116,4341.0,4340.3,44.0078]
[1756868185405,0.4979,4340.9,4340.4,0.235]
[1756868189697,0.116,4340.5,4340.4,0.235]
[1756868189891,0.4103,4340.5,4340.4,0.235]
[1756868190086,0.6139,4340.5,4340.4,0.235]
[1756868191396,0.8235,4340.5,4340.3,44.0078]
[1756868191705,0.4979,4339.8,4339.7,8.5428]
[1756868191896,0.7075,4339.8,4339.7,8.7778]
[1756868192092,0.7075,4339.8,4339.7,44.2428]
[1756868192297,0.7075,4339.8,4339.7,44.0078]
[1756868192595,0.7075,4339.8,4339.7,44.2428]
[1756868192797,0.7075,4339.8,4339.6,0.235]
[1756868192998,0.2943,4339.7,4339.6,0.235]
[1756868193192,0.7075,4339.7,4339.6,0.235]
[1756868195506,0.116,4339.5,4339.3,3.2078]
[1756868195692,0.7075,4339.4,4339.0,0.235]
[1756868196201,0.4132,4339.2,4339.1,40.8]
[1756868196404,0.7075,4339.2,4339.1,40.8]
[1756868205112,0.4132,4339.2,4338.9,5.335]
[1756868205404,0.5185,4338.8,4338.7,3.2078]
[1756868205608,0.5185,4338.8,4338.7,44.2428]
[1756868205800,0.3103,4338.8,4338.7,44.2428]
[1756868216721,1.40133314,4338.8,4338.7,44.2428]
[1756868222623,0.3103,4338.9,4338.7,44.2428]
[1756868223117,0.1267,4339.0,4338.7,44.2428]
[1756868223430,0.3103,4338.9,4338.7,44.2428]
[1756868223623,0.1267,4339.0,4338.7,44.2428]
[1756868224027,0.3103,4338.9,4338.7,44.2428]
[1756868224923,0.1267,4339.0,4338.7,44.2428]
[1756868225823,0.3103,4338.9,4338.7,44.2428]
[1756868226033,3.2078,4339.7,4338.8,5.335]
[1756868226220,3.5181,4339.7,4339.3,1.09103314]
[1756868226416,3.2078,4339.7,4339.6,1.09103314]
[1756868226625,0.3103,4340.4,4339.6,1.32603314]
[1756868226820,1.20703314,4340.5,4340.1,3.2078]
[1756868227028,0.3103,4340.4,4340.2,0.235]
[1756868227325,0.3103,4340.3,4340.2,41.035]
[1756868227521,0.3103,4340.3,4340.2,0.235]
[1756868227920,0.3103,4340.2,4340.0,0.235]
[1756868228126,0.3103,4339.9,4339.8,0.235]
[1756868228524,0.3103,4339.9,4339.8,41.035]
[1756868229020,0.116,4340.5,4339.8,41.035]
[1756868229221,0.3103,4340.4,4339.8,41.035]
[1756868229417,0.116,4340.5,4339.8,41.035]
[1756868229622,0.3103,4340.4,4339.8,41.035]
[1756868230323,0.3103,4340.4,4340.0,1.09103314]
[1756868230528,0.3103,4340.4,4340.1,0.235]
[1756868230826,3.5181,4340.8,4340.3,1.09103314]
[1756868231025,0.3103,4340.7,4340.4,0.235]
[1756868231524,0.3025,4340.7,4340.4,0.235]